bitfinex/quotes_SOLUSD_20240708
["timestamp","ask_amount","ask_price","bid_price","bid_amount"]
[1720458636424,7.2763,137.44,137.39,100.0]
[1720458636636,0.8627342,137.47,137.39,107.2785]
[1720458636843,8.1370342,137.47,137.41,100.0]
[1720458637020,7.275,137.46,137.39,18.1951]
[1720458637217,0.8627342,137.47,137.39,18.196]
[1720458637518,7.275,137.46,137.39,147.574]
[1720458637724,8.1371342,137.47,137.41,100.0]
[1720458637943,0.8627342,137.47,137.41,118.1929]
[1720458638110,0.8627342,137.47,137.41,140.2929]
[1720458638316,0.8627342,137.47,137.42,7.2768]
[1720458638535,0.8627342,137.47,137.44,18.189]
[1720458638722,0.8627342,137.47,137.45,100.0]
[1720458639113,0.8627342,137.47,137.45,107.2753]
[1720458639533,0.8627342,137.47,137.44,25.4647]
[1720458639937,0.8627342,137.47,137.41,118.1931]
[1720458640329,0.8627342,137.47,137.41,100.0]
[1720458640643,0.8627342,137.47,137.43,100.0]
[1720458640857,0.8627342,137.47,137.45,100.0]
[1720458641045,0.8627342,137.47,137.46,0.17]
[1720458641519,0.8627342,137.47,137.46,7.4448]
[1720458642328,0.8627342,137.47,137.46,7.6148]
[1720458642643,0.8627342,137.47,137.46,7.4448]
[1720458642845,0.8627342,137.47,137.43,100.0]
[1720458643329,0.8627342,137.47,137.45,100.0]
[1720458643742,0.8627342,137.47,137.42,100.0]
[1720458643935,0.8627342,137.47,137.41,100.0]
[1720458644249,0.8627342,137.47,137.43,100.0]
[1720458644459,0.8627342,137.47,137.43,107.276]
[1720458644621,0.8627342,137.47,137.46,100.0]
[1720458645252,0.8627342,137.47,137.45,100.0]
[1720458645542,0.8627342,137.47,137.45,107.2752]
[1720458645747,0.8627342,137.47,137.45,100.0]
[1720458645960,0.8627342,137.47,137.46,0.17]
[1720458646120,0.8627342,137.47,137.46,7.4448]
[1720458646748,0.8627342,137.47,137.44,18.1893]
[1720458647127,0.8627342,137.47,137.46,100.17]
[1720458647326,0.8627342,137.47,137.46,100.0]
[1720458647550,0.8627342,137.47,137.44,125.6351]
[1720458647719,0.8627342,137.47,137.44,100.0]
[1720458647918,0.8627342,137.47,137.46,100.0]
[1720458648141,0.8627342,137.47,137.46,107.2748]
[1720458649145,0.8627342,137.47,137.46,129.5448]
[1720458649362,0.8627342,137.47,137.46,229.5448]
[1720458649761,0.8627342,137.47,137.46,229.7148]
[1720458650440,0.8627342,137.47,137.46,122.27]
[1720458650757,0.8627342,137.47,137.43,122.1]
[1720458651068,0.8627342,137.47,137.43,129.376]
[1720458651234,0.8627342,137.47,137.43,100.0]
[1720458651429,0.8627342,137.47,137.42,18.1914]
[1720458651430,0.8627342,137.47,137.42,25.4681]
[1720458651641,7.2764,137.43,137.37,129.3793]
[1720458651943,0.8627342,137.47,137.4,122.1]
[1720458652142,0.8627342,137.47,137.4,100.0]
[1720458652458,7.2755,137.45,137.4,118.1948]
[1720458652666,7.2759,137.44,137.4,100.0]
[1720458653152,7.2753,137.46,137.4,107.2779]
[1720458653393,0.8627342,137.47,137.43,100.0]
[1720458654031,0.8627342,137.47,137.45,100.0]
[1720458654227,0.8627342,137.47,137.41,100.0]
[1720458654427,0.8627342,137.47,137.25,7.304]
[1720458654428,7.2748,137.46,137.39,100.0]
[1720458654633,7.2754,137.45,137.39,125.4737]
[1720458654837,0.8627342,137.47,137.39,100.0]
[1720458654838,7.2767,137.43,137.39,100.0]
[1720458655064,0.8627342,137.47,137.44,100.0]
[1720458655568,0.8627342,137.47,137.44,125.4648]
[1720458655767,0.8627342,137.47,137.44,118.1893]
[1720458655931,0.8627342,137.47,137.44,129.3758]
[1720458656137,0.8627342,137.47,137.44,107.2758]
[1720458656457,0.8627342,137.47,137.43,25.637]
[1720458656761,0.8627342,137.47,137.43,7.2764]
[1720458657057,0.8627342,137.47,137.45,100.0]
[1720458657477,0.8627342,137.47,137.45,130.0]
[1720458657639,0.8627342,137.47,137.45,30.0]
[1720458658258,0.8627342,137.47,137.45,137.2752]
[1720458658473,0.8627342,137.47,137.45,130.0]
[1720458658658,0.8627342,137.47,137.46,7.2748]
[1720458658973,0.8627342,137.47,137.46,37.2748]
[1720458659465,0.8627342,137.47,137.46,159.7148]
[1720458660284,0.8627342,137.47,137.46,30.0]
[1720458661439,15.5627,137.46,137.34,100.0]
[1720458661640,13.19328287,137.45,137.35,100.0]
[1720458661868,0.34,137.44,137.33,100.0]
[1720458662162,20.0,137.45,137.35,100.0]
[1720458662367,20.0,137.45,137.35,129.3805]
[1720458662546,7.2779,137.41,137.35,122.1]
[1720458662744,15.5627,137.46,137.38,7.2789]
[1720458662941,0.8627342,137.47,137.44,100.0]
[1720458663347,0.8627342,137.47,137.44,200.0]
[1720458663941,0.8627342,137.47,137.42,100.17]
[1720458664548,7.2762,137.44,137.39,0.17]
[1720458664753,18.1888,137.45,137.38,100.0]
[1720458664939,7.2773,137.42,137.38,100.0]
[1720458665267,7.2765,137.43,137.38,122.1]
[1720458665457,7.2771,137.42,137.38,100.0]
[1720458665849,7.2781,137.4,137.38,100.0]
[1720458666078,27.2785,137.39,137.32,225.4873]
[1720458666381,18.1928,137.42,137.34,7.2811]
[1720458666382,7.278,137.4,137.34,7.2811]
[1720458666579,18.1928,137.42,137.32,218.2052]
[1720458666580,20.0,137.39,137.32,218.2052]
[1720458666887,20.0,137.41,137.32,118.2052]
[1720458667048,20.0,137.41,137.34,100.0]
[1720458667049,7.2785,137.4,137.34,100.0]
[1720458667253,20.0,137.41,137.34,100.0]
[1720458667475,7.2787,137.39,137.32,118.2052]
[1720458667769,7.2791,137.38,137.32,125.4872]
[1720458668172,7.2807,137.35,137.3,100.0]
[1720458668383,6.0379,137.43,137.39,7.2781]
[1720458668544,6.0379,137.43,137.38,25.4755]
[1720458668749,17.2631342,137.47,137.39,100.0]
[1720458668975,17.2631342,137.47,137.41,100.0]
[1720458669479,7.2749,137.46,137.41,100.0]
[1720458670173,7.2753,137.45,137.41,100.0]
[1720458670388,0.8627342,137.47,137.39,100.0]
[1720458670681,7.277,137.42,137.39,100.0]
[1720458670852,18.1893,137.45,137.39,100.0]
[1720458671052,18.1893,137.45,137.37,100.0]
[1720458671277,18.1893,137.45,137.36,0.17]
[1720458671577,7.2796,137.37,137.31,29.3824]
[1720458671777,6.91732517,137.44,137.37,100.0]
[1720458672075,20.0,137.43,137.37,122.1]
[1720458672288,7.2759,137.44,137.38,25.4759]
[1720458672576,0.8627342,137.47,137.42,122.1]
[1720458672749,0.8627342,137.47,137.44,118.1892]
[1720458672953,0.8627342,137.47,137.46,107.2748]
[1720458673167,0.8627342,137.47,137.46,7.2748]
[1720458673493,0.8627342,137.47,137.44,118.1892]
[1720458673787,0.8627342,137.47,137.42,100.0]
[1720458673948,0.8627342,137.47,137.42,107.2765]
[1720458674152,8.1370342,137.47,137.42,0.17]
[1720458674476,0.8627342,137.47,137.42,100.0]
[1720458674778,0.8627342,137.47,137.41,18.1934]
[1720458675080,0.8627342,137.47,137.41,140.2934]
[1720458675861,0.8627342,137.47,137.43,100.0]
[1720458676370,0.8627342,137.47,137.45,107.2753]
[1720458676573,0.8627342,137.47,137.46,7.2748]
[1720458679294,0.8627342,137.47,137.42,25.4677]
[1720458679586,0.8627342,137.47,137.42,25.4678]
[1720458679801,7.2749,137.46,137.4,7.2779]
[1720458679975,0.8627342,137.47,137.39,18.1955]
[1720458679976,8.1375342,137.47,137.39,18.1955]
[1720458680172,7.275,137.46,137.4,7.2779]
[1720458680396,8.1373342,137.47,137.41,7.2773]
[1720458680700,0.8627342,137.47,137.42,7.2768]
[1720458680895,0.8627342,137.47,137.43,7.2763]
[1720458681079,0.8627342,137.47,137.44,7.2758]
[1720458681283,0.8627342,137.47,137.43,18.1907]
[1720458681480,8.1371342,137.47,137.41,107.2773]
[1720458681681,0.8627342,137.47,137.4,18.1945]
[1720458681984,8.1372342,137.47,137.41,7.277]
[1720458682182,20.0,137.46,137.37,18.1988]
[1720458682491,0.8627342,137.47,137.34,100.0]
[1720458682492,18.3586,137.45,137.34,100.0]
[1720458682697,27.276,137.44,137.38,7.2786]
[1720458682881,7.2778,137.41,137.35,7.2802]
[1720458683206,7.2772,137.42,137.36,7.28]
[1720458683371,20.0,137.41,137.37,7.2796]
[1720458683788,27.2775,137.41,137.35,25.4814]
[1720458683994,27.2775,137.41,137.35,125.4814]
[1720458684303,7.278,137.4,137.35,25.4814]
[1720458684507,7.2785,137.39,137.33,100.0]
[1720458685007,27.2776,137.41,137.35,7.2803]
[1720458685214,20.0,137.44,137.35,100.0]
[1720458685504,20.0,137.44,137.37,7.2795]
[1720458685505,7.2764,137.43,137.37,7.2795]
[1720458685687,27.277,137.42,137.36,25.4799]
[1720458686004,20.0,137.42,137.37,7.2795]
[1720458686310,0.8627342,137.47,137.38,118.1972]
[1720458686489,0.8627342,137.47,137.37,21.87]
[1720458686688,0.8627342,137.47,137.36,100.0]
[1720458686689,0.8627342,137.47,137.46,7.2748]
[1720458686889,0.8627342,137.47,137.46,129.3148]
[1720458687084,0.8627342,137.47,137.46,129.4848]
[1720458687503,0.8627342,137.47,137.46,29.4848]
[1720458687705,0.8627342,137.47,137.46,129.3148]
[1720458687900,0.8627342,137.47,137.46,130.93495605]
[1720458688289,0.8627342,137.47,137.46,150.93495605]
[1720458690206,0.8627342,137.47,137.46,50.93495605]
[1720458690413,0.8627342,137.47,137.46,130.93495604]
[1720458690721,0.8627342,137.47,137.46,149.4848]
[1720458690929,0.04325856,137.52,137.51,247.3225]
[1720458691109,0.04325856,137.52,137.51,247.6625]
[1720458691505,0.04325856,137.52,137.51,247.4925]
[1720458692389,0.04325856,137.52,137.51,247.6625]
[1720458694208,0.04325856,137.52,137.51,247.4925]
[1720458694726,0.04325856,137.52,137.51,147.3225]
[1720458694898,0.04325856,137.52,137.51,247.4925]
[1720458695313,0.04325856,137.52,137.51,147.3225]
[1720458695716,0.04325856,137.52,137.48,140.0535]
[1720458695922,0.04325856,137.52,137.49,7.2731]
[1720458696320,0.04325856,137.52,137.51,107.2721]
[1720458696701,0.04325856,137.52,137.5,25.454]
[1720458697213,0.04325856,137.52,137.51,7.2721]
[1720458697415,0.04325856,137.52,137.51,129.1421]
[1720458697621,0.04325856,137.52,137.5,25.454]
[1720458697812,0.04325856,137.52,137.51,7.2721]
[1720458698015,0.04325856,137.52,137.5,18.1815]
[1720458698016,0.04325856,137.52,137.5,25.454]
[1720458698200,0.04325856,137.52,137.51,107.2721]
[1720458698399,0.04325856,137.52,137.51,129.3121]
[1720458698821,0.04325856,137.52,137.51,229.3121]
[1720458699323,0.04325856,137.52,137.51,229.4821]
[1720458700230,0.04325856,137.52,137.51,229.3121]
[1720458700606,0.04325856,137.52,137.51,129.3121]
[1720458700818,0.04325856,137.52,137.51,229.4821]
[1720458701024,0.02,137.57,137.56,25.4433]
[1720458701401,0.02,137.57,137.56,147.4833]
[1720458702640,0.02,137.57,137.56,47.4833]
[1720458703011,0.02,137.57,137.56,147.4833]
[1720458703201,0.02,137.57,137.56,147.6533]
[1720458704225,0.02,137.57,137.56,167.6533]
[1720458704408,0.02,137.6,137.59,283.8176]
[1720458704612,0.02,137.6,137.59,283.9876]
[1720458705012,0.8627342,137.61,137.6,29.3074]
[1720458705610,0.8627342,137.61,137.6,29.4774]
[1720458706139,0.02,137.68,137.67,125.423]
[1720458706341,0.02,137.68,137.67,125.593]
[1720458708616,0.02,137.68,137.67,125.423]
[1720458708815,0.02,137.68,137.67,118.1593]
[1720458709419,0.02,137.68,137.67,18.1593]
[1720458709614,0.02,137.68,137.66,7.2641]
[1720458709837,0.02,137.68,137.65,100.0]
[1720458710034,0.02,137.68,137.64,18.1622]
[1720458710433,7.2835,137.68,137.61,118.1664]
[1720458710636,0.02,137.68,137.61,18.1664]
[1720458710850,0.02,137.68,137.59,100.0]
[1720458711029,7.2644,137.66,137.59,100.0]
[1720458711230,0.02,137.68,137.61,100.0]
[1720458711643,0.02,137.66,137.6,18.168]
[1720458711924,0.02,137.66,137.61,7.2665]
[1720458712139,7.2843,137.66,137.61,7.2665]
[1720458712461,0.02,137.66,137.64,7.2652]
[1720458712629,0.02,137.66,137.65,107.2648]
[1720458712831,0.02,137.66,137.65,7.2648]
[1720458715051,0.02,137.66,137.64,18.1625]
[1720458715367,0.02,137.66,137.62,107.2663]
[1720458716246,0.02,137.66,137.61,18.1664]
[1720458716447,7.2651,137.65,137.59,100.0]
[1720458716643,0.02,137.66,137.62,7.2662]
[1720458716828,0.02,137.66,137.63,7.2658]
[1720458717029,0.02,137.66,137.64,7.2652]
[1720458717231,0.02,137.66,137.62,18.1657]
[1720458717431,0.02,137.66,137.63,7.2654]
[1720458717645,0.02,137.66,137.64,7.2652]
[1720458717844,0.02,137.66,137.63,7.2656]
[1720458718055,0.02,137.66,137.64,7.2652]
[1720458718556,0.02,137.66,137.63,7.2656]
[1720458719140,0.02,137.66,137.65,7.2648]
[1720458719352,0.02,137.66,137.62,7.2659]
[1720458719755,0.02,137.66,137.61,125.4332]
[1720458720257,0.02,137.66,137.62,7.2663]
[1720458720434,0.02,137.66,137.61,125.4331]
[1720458720635,0.02,137.66,137.62,7.2663]
[1720458720836,0.02,137.66,137.61,118.1664]
[1720458721062,0.02,137.66,137.62,7.266]
[1720458721261,0.02,137.66,137.61,125.4332]
[1720458721472,0.02,137.66,137.65,7.2648]
[1720458722249,0.02,137.66,137.63,18.1644]
[1720458722451,0.02,137.66,137.62,7.2663]
[1720458722656,7.2845,137.66,137.61,100.0]
[1720458722859,0.02,137.66,137.61,107.2668]
[1720458723164,0.02,137.66,137.62,18.1656]
[1720458723372,0.02,137.66,137.63,100.0]
[1720458723668,0.02,137.66,137.64,7.2651]
[1720458723852,0.02,137.66,137.62,18.1656]
[1720458724168,0.02,137.66,137.61,7.2668]
[1720458724353,0.02,137.66,137.61,125.4339]
[1720458724549,0.02,137.66,137.6,7.2672]
[1720458724740,0.02,137.66,137.59,107.2678]
[1720458724741,7.2651,137.65,137.59,107.2678]
[1720458724940,7.2651,137.65,137.6,7.2674]
[1720458725158,0.02,137.66,137.6,18.1682]
[1720458725341,7.2648,137.65,137.6,18.1682]
[1720458725671,7.2648,137.65,137.57,115.4801]
[1720458725672,7.2667,137.62,137.57,18.1714]
[1720458725875,7.2662,137.63,137.57,7.2688]
[1720458726248,7.2862,137.63,137.57,7.2688]
[1720458726445,7.2862,137.63,137.59,7.2678]
[1720458726446,0.02,137.63,137.59,7.2678]
[1720458726756,7.2859,137.63,137.58,25.439]
[1720458726956,7.2859,137.63,137.58,18.1707]
[1720458727363,0.02,137.63,137.58,25.4389]
[1720458727658,0.02,137.63,137.56,7.2694]
[1720458727862,0.02,137.63,137.55,125.4441]
[1720458728165,7.2667,137.62,137.56,7.2695]
[1720458728371,7.2667,137.62,137.57,7.269]
[1720458728597,7.2664,137.62,137.57,7.269]
[1720458728900,7.2675,137.6,137.55,25.4443]
[1720458729270,7.2675,137.6,137.51,100.0]
[1720458729271,7.2685,137.58,137.51,118.1795]
[1720458729494,7.2685,137.58,137.52,7.2715]
[1720458729670,7.269,137.57,137.51,25.4515]
[1720458730281,7.2695,137.56,137.51,25.4515]
[1720458730484,28.6985,137.57,137.51,25.4515]
[1720458730888,7.2696,137.56,137.51,18.1795]
[1720458731205,28.6986,137.57,137.52,7.2715]
[1720458731399,28.6986,137.57,137.51,18.1795]
[1720458731400,21.4295,137.57,137.53,7.271]
[1720458731895,21.4295,137.57,137.52,7.2715]
[1720458732605,21.4495,137.57,137.52,7.2715]
[1720458732813,7.2696,137.56,137.51,25.4515]
[1720458733022,20.0,137.55,137.47,100.0]
[1720458733302,7.2714,137.53,137.47,118.1851]
[1720458733509,7.2707,137.54,137.48,7.2736]
[1720458733878,7.2712,137.53,137.48,7.2736]
[1720458734192,7.2712,137.53,137.47,25.4593]
[1720458734398,6.2894,137.5,137.44,18.1885]
[1720458734579,6.2894,137.5,137.45,7.2751]
[1720458734777,6.2894,137.5,137.46,7.2748]
[1720458735101,6.2894,137.5,137.47,7.2742]
[1720458735301,13.5598,137.55,137.49,100.0]
[1720458735484,6.2894,137.55,137.51,7.272]
[1720458735690,6.2894,137.55,137.5,25.4538]
[1720458735914,13.5596,137.55,137.5,25.4538]
[1720458736087,7.2722,137.51,137.45,100.0]
[1720458736301,24.4649,137.55,137.44,18.1886]
[1720458736486,18.1785,137.53,137.44,18.1886]
[1720458736684,20.0,137.52,137.44,18.1886]
[1720458737012,20.0,137.52,137.43,7.2763]
[1720458737185,0.17,137.51,137.43,7.2764]
[1720458737384,20.0,137.52,137.46,7.2747]
[1720458737716,20.0,137.54,137.45,18.1881]
[1720458738084,20.0,137.54,137.45,25.4633]
[1720458738282,20.0,137.54,137.46,7.2747]
[1720458738480,15.03184484,137.55,137.47,118.1854]
[1720458738481,6.2894,137.55,137.47,118.1854]
[1720458738696,6.0892,137.57,137.51,25.4519]
[1720458738915,6.0892,137.57,137.51,18.1802]
[1720458739208,6.0892,137.57,137.5,107.2725]
[1720458739209,6.0892,137.57,137.46,100.0]
[1720458739409,6.0892,137.57,137.46,121.87]
[1720458739746,6.0892,137.57,137.47,18.1855]
[1720458740019,20.0,137.56,137.45,7.275]
[1720458740314,29.7845,137.49,137.44,18.1889]
[1720458740486,22.511,137.49,137.42,100.0]
[1720458740687,22.511,137.49,137.44,100.0]
[1720458740904,22.511,137.49,137.4,22.1944]
[1720458741114,7.2746,137.47,137.41,7.2774]
[1720458741323,22.511,137.49,137.4,4.0]
[1720458741483,7.2762,137.44,137.4,4.0]
[1720458741687,7.2744,137.47,137.41,7.2772]
[1720458741884,22.511,137.49,137.4,11.2779]
[1720458741885,27.2752,137.46,137.4,11.2779]
[1720458742116,7.2754,137.45,137.4,11.2779]
[1720458742409,7.2767,137.43,137.4,4.0]
[1720458742610,20.0,137.46,137.4,4.0]
[1720458742919,18.1889,137.45,137.4,4.0]
[1720458743209,7.2766,137.43,137.4,4.0]
[1720458743614,7.277,137.42,137.4,4.0]
[1720458744597,7.2774,137.41,137.4,4.0]
[1720458744822,33.315,137.41,137.4,0.69999946]
[1720458745040,7.2797,137.37,137.31,7.2824]
[1720458745202,7.2792,137.38,137.32,7.2821]
[1720458745401,7.2785,137.39,137.34,100.0]
[1720458745838,7.2782,137.4,137.34,107.281]
[1720458746145,20.0,137.39,137.34,107.281]
[1720458746300,5.86118038,137.45,137.27,36.4219]
[1720458746301,12.50698038,137.45,137.37,7.2791]
[1720458746639,13.9216,137.45,137.39,100.0]
[1720458746838,7.2745,137.47,137.41,7.2773]
[1720458747126,6.6458,137.49,137.39,118.196]
[1720458747329,18.1849,137.48,137.37,100.0]
[1720458747535,7.2776,137.41,137.37,100.0]
[1720458747693,7.2781,137.4,137.34,107.2808]
[1720458747898,7.2781,137.4,137.34,7.2808]
[1720458748326,7.2786,137.39,137.34,7.2808]
[1720458748505,7.2781,137.4,137.34,7.2808]
[1720458748715,13.9233,137.41,137.35,7.2804]
[1720458748895,20.0,137.4,137.33,18.2032]
[1720458749100,20.0,137.4,137.35,100.0]
[1720458749399,20.0,137.4,137.35,107.2802]
[1720458749829,20.0,137.4,137.35,118.2014]
[1720458750030,20.0,137.4,137.35,125.4815]
[1720458750212,6.6458,137.41,137.36,7.28]
[1720458750610,7.2783,137.4,137.35,18.2014]
[1720458750806,6.6458,137.41,137.32,18.2047]
[1720458751030,18.1966,137.39,137.31,100.0]
[1720458751206,20.0,137.38,137.3,100.0]
[1720458751530,20.0,137.38,137.25,36.4282]
[1720458751531,7.2808,137.35,137.29,7.2836]
[1720458751824,7.2812,137.34,137.28,125.4945]
[1720458752625,7.2808,137.35,137.29,7.2835]
[1720458752825,20.0,137.38,137.32,121.87]
[1720458753135,7.2792,137.38,137.32,147.3574]
[1720458754309,20.0,137.4,137.34,100.0]
[1720458754503,20.0,137.4,137.34,107.281]
[1720458754828,7.279,137.38,137.33,7.2815]
[1720458755037,7.2797,137.37,137.32,118.2054]
[1720458755199,7.2801,137.36,137.32,100.0]
[1720458755397,20.0,137.4,137.3,100.0]
[1720458755606,7.2821,137.33,137.28,100.0]
[1720458755829,20.0,137.4,137.3,100.0]
[1720458755830,7.2809,137.35,137.3,100.0]
[1720458756698,7.2809,137.35,137.29,29.1536]
[1720458756699,7.2816,137.34,137.28,118.2107]
[1720458756899,18.1966,137.39,137.28,140.0807]
[1720458757134,24.2067,137.37,137.28,118.2107]
[1720458757342,7.2818,137.33,137.28,118.2107]
[1720458757501,24.2067,137.37,137.28,118.2107]
[1720458757697,20.0,137.36,137.31,100.0]
[1720458757926,20.0,137.36,137.3,7.2828]
[1720458757927,27.2803,137.36,137.3,7.2828]
[1720458758137,7.2807,137.35,137.29,100.0]
[1720458758342,7.2807,137.35,137.29,107.2833]
[1720458758631,7.2812,137.34,137.29,100.0]
[1720458758811,27.2812,137.34,137.29,100.0]
[1720458759014,7.2808,137.35,137.29,100.0]
[1720458759333,7.2799,137.37,137.31,107.2823]
[1720458759503,7.2794,137.38,137.32,7.282]
[1720458759707,20.0,137.37,137.3,18.3776]
[1720458759908,7.281,137.35,137.3,18.3776]
[1720458760315,7.2813,137.34,137.29,100.0]
[1720458761025,22.5128,137.33,137.24,40.0862]
[1720458761330,22.5128,137.33,137.25,100.0]
[1720458761331,7.2834,137.3,137.25,100.0]
[1720458761509,7.2829,137.31,137.25,107.2858]
[1720458761710,20.0,137.3,137.25,107.2858]
[1720458761900,20.0,137.3,137.24,18.2162]
[1720458762101,20.0,137.3,137.21,154.6573]
[1720458762306,7.2844,137.28,137.22,7.2872]
[1720458762811,7.284,137.29,137.23,7.2868]
[1720458763009,18.2087,137.3,137.21,100.0]
[1720458763219,20.0,137.29,137.23,100.0]
[1720458763538,20.0,137.32,137.27,7.2846]
[1720458764034,27.2823,137.32,137.26,147.368]
[1720458764542,27.2823,137.32,137.27,7.2848]
[1720458765020,7.2829,137.31,137.26,140.0828]
[1720458765213,27.2833,137.3,137.26,121.87]
[1720458765412,20.0,137.3,137.26,121.87]
[1720458765615,20.0,137.3,137.25,0.17]
[1720458765833,20.0,137.33,137.24,121.87]
[1720458766047,18.2059,137.32,137.23,0.17]
[1720458766352,7.2844,137.28,137.24,0.17]
[1720458766555,7.2844,137.28,137.24,100.17]
[1720458767047,7.2844,137.28,137.24,0.17]
[1720458767747,7.2857,137.26,137.22,100.0]
[1720458767950,7.2852,137.27,137.22,100.0]
[1720458768250,18.2054,137.33,137.24,100.0]
[1720458768434,7.2835,137.3,137.24,107.2865]
[1720458768618,20.0,137.29,137.24,100.0]
[1720458769235,20.0,137.32,137.24,100.0]
[1720458769442,18.2071,137.31,137.24,100.0]
[1720458769623,20.0,137.3,137.24,100.0]
[1720458770145,7.2845,137.28,137.24,100.0]
[1720458770329,20.0,137.3,137.26,100.0]
[1720458770530,20.0,137.33,137.26,100.0]
[1720458770730,7.2833,137.3,137.26,100.0]
[1720458771036,20.0,137.29,137.26,100.0]
[1720458771546,9.19744484,137.35,137.27,100.0]
[1720458771854,7.2829,137.31,137.27,100.0]
[1720458773251,7.2833,137.3,137.25,107.4555]
[1720458773653,7.2833,137.3,137.25,100.17]
[1720458773973,15.243,137.33,137.21,100.0]
[1720458774130,18.2126,137.27,137.21,100.0]
[1720458774335,7.2861,137.25,137.2,21.87]
[1720458774534,7.2856,137.26,137.21,129.158]
[1720458774843,6.0886,137.29,137.21,100.0]
[1720458775041,7.2855,137.26,137.21,100.0]
[1720458775360,20.0,137.28,137.23,100.0]
[1720458776130,20.0,137.28,137.21,129.1579]
[1720458776331,7.285,137.27,137.23,100.0]
[1720458776737,20.0,137.26,137.21,100.0]
[1720458776943,7.2856,137.26,137.21,100.0]
[1720458778156,7.2861,137.25,137.21,100.0]
[1720458778530,38.2111,137.28,137.2,0.17]
[1720458778766,38.2111,137.28,137.2,100.0]
[1720458778767,15.1764,137.26,137.2,100.0]
[1720458778941,27.2863,137.25,137.2,100.0]
[1720458779471,7.2866,137.24,137.18,100.0]
[1720458779633,7.2871,137.23,137.18,129.1595]
[1720458779831,7.2867,137.24,137.18,129.1595]
[1720458780146,38.2111,137.28,137.17,100.0]
[1720458780147,18.2149,137.26,137.17,100.0]
[1720458780462,20.0,137.23,137.17,100.0]
[1720458780664,7.2876,137.22,137.17,100.0]
[1720458780879,45.2667829,137.29,137.18,40.0934]
[1720458781050,28.5489,137.29,137.22,100.0]
[1720458781249,7.2845,137.28,137.22,107.2874]
[1720458781454,7.2845,137.28,137.22,100.0]
[1720458781655,28.549,137.29,137.23,7.2869]
[1720458781865,6.0886,137.29,137.24,100.0]
[1720458782183,15.14874503,137.35,137.29,100.0]
[1720458782345,15.6407,137.4,137.31,121.87]
[1720458782680,7.2793,137.38,137.32,107.2817]
[1720458782849,15.6407,137.4,137.33,7.2816]
[1720458783043,7.2792,137.38,137.32,7.2821]
[1720458783249,15.6407,137.4,137.31,0.17]
[1720458783469,15.6407,137.4,137.3,100.0]
[1720458783765,22.9188,137.4,137.34,7.2811]
[1720458783949,15.6407,137.4,137.34,107.2811]
[1720458784147,15.6407,137.4,137.35,7.2806]
[1720458784368,7.2785,137.39,137.33,7.2812]
[1720458784747,15.6407,137.4,137.32,40.0752]
[1720458784951,7.2787,137.39,137.33,107.4513]
[1720458785252,20.0,137.38,137.33,100.17]
[1720458785468,27.2786,137.39,137.33,107.4513]
[1720458785779,27.2786,137.39,137.32,18.2052]
[1720458785780,7.2797,137.37,137.32,18.2052]
[1720458785977,7.2805,137.36,137.31,0.17]